Workbook

Sheet ReadMe
A1: Aug.20.2012_Model
A2: Abbreviations | B2: USGS, U.S. Geological Survey; ID, identifier; TP, total phosphorus; No., number; SW, surface water; RM, river mile; GW, groundwater; Q, discharge; WWTP, wastewater treatment plant; IDWR, Idaho Department of Water Resources; LT-MDL, long-term method detection limit; RL, reporting level; MRL, method reporting level; ft3/s, cubic feet per second; mg/L, milligrams per liter; lbs/d, pounds per day; kg/d, kilograms per day.
A3: Explanation | B3: Refer to the methods section of the report for a full explanation of computations used in the model. Variables explained in the methods section are provided at the top of each column where they are relevant. The equation number in the report that describes a variable is also referenced. Bold, italic sites are main-stem Boise River sites. Bold green sites are sampled returns. Column B is hidden and shows site names. Green-filled column headings indicate measured data. Yellow-filled column headings indicate measured and estimated or computed information. Light blue highlighted cells are groundwater calculations. Light orange cells show results for the measured mass balance model. Light red cells show results for the predictive mass balance model. Yellow cells in the assumed groundwater TP columns are input data for assumed groundwater TP concentrations. Dark blue headings indicate that the user can change inputs to see the resulting scenario in the predictive mass balance model. See comments in specific cells for more detailed information.
A4: Predictive Model Scenarios | B4: Use the password "model" to unlock cells described in this section. To run a scenario using the predictive model, set the assumed groundwater concentration below RM 28.8 in cell O39. Paste the selected groundwater assumptions as values into the "Assumed GW TP Dial" column M. Change desired concentrations in blue- and purple-highlighted cells in the "SW TP Concentration Dial" column. Purple-highlighted cells represent point sources and blue-highlighted cells represent nonpoint sources. View results on the "Concentration Interactive" and "Load Interactive" worksheets. To revert SW TP concentrations back to their measured values, press the "Revert" button. If the user would prefer load output in kg/d, change the conversion factor to 2.445 in the "Conversion Factor" cell T2.
A5: North Channel
A6: Explanation | B6: Abbreviations are the same as in the Aug.20.2012_Model worksheet. This worksheet shows model calculations in the North Channel. No user inputs are enabled in this worksheet.
A7: Unmeasured_Gains_Losses
A8: Explanation | B8: Abbreviations are the same as in the Aug.20.2012_Model worksheet. Variables as well as the equation in which they are defined in the report are provided at column headings. The variables computed in this worksheet are used to interpolate groundwater and TP gains throughout the modeling reach.
A9: Measured_Main_Stem_Data
A10: Explanation | B10: Abbreviations are the same as in the Aug.20.2012_Model worksheet. This worksheet shows measured main-stem TP concentrations, discharges, and instantaneous loads and is used to plot those measured values on various charts. It also updates a comparison chart to view predictive versus measured model output. Mm, Cp, and Cm stand for measured model loads, predictive model concentrations, and measured model concentrations, respectively.
A11: Concentration Interactive, Load Interactive, and Discharge Calibration Plot
A12: Explanation | B12: Abbreviations are the same as in the Aug.20.2012_Model worksheet. These worksheets show model results. The Concentration Interactive worksheet shows measured model and predictive model TP concentrations. It will also show predictive model concentrations when a scenario is run on the predictive model. The measured model is static on this worksheet. The Load Interactive worksheet shows measured model and predictive model TP loads. It will also show predictive model loads when a scenario is run on the predictive model. The measured model is static on this worksheet. The blue line represents net surface-water TP loads without the influence of groundwater. The Discharge Calibration Plot worksheet shows modeled discharge as a red line. It also shows net surface-water discharge without the influence of groundwater as a blue line. The distance of the red line above or below the blue line indicates the magnitude and cumulative amount of unaccounted for discharge gains and losses, respectively. The gains and losses are assumed to represent groundwater exchange in the Boise River.
A13: Major_inflows
A14: Explanation | B14: Abbreviations are the same as in the Aug.20.2012_Model worksheet. This worksheet it simply used to plot vertical lines on charts showing the location of major tributary inflows to the lower Boise River.

Sheet Aug.20.2012_Model
S1: Variable in Report | T1: Factor | U1: Conversion
S2: F | T2: 5.39378 | U2: [ft3/s ∙ mg/L] to lbs/d
S3: 1/F | T3: =1/T2 -> 0.1853987371 | U3: lbs/d to [ft3/s ∙ mg/L]
D5: Equation No. In Report | E5: 1 | F5: 5 | G5: 5 | H5: 1 | I5: 5 | K5: 1 | L5: 3 | M5: 4 | N5: 18 | O5: 18 | Q5: 14 | R5: 17 | S5: 5 | T5: 5 | U5: 7 | W5: 9 | X5: 12
D6: Variable in Report | E6: QUS, QDS, QD,or QR | F6: CUS, CDS, or CR | G6: CD | H6: = QUS - QD or + QR | I6: = MUS - MD or + MR | K6: Qgw | L6: Qgwi…n | M6: Qmi…n | N6: Cgw i…n | O6: Cgwupper i…n, Cgw = 0.25 | Q6: Cp | R6: Mp | S6: MUS, -MD, +MR | T6: ∆M | U6: ∆Mi…n | V6: Cgwbc | W6: Cm | X6: Mm
A7: Diversion, Return, or Main-stem | B7: Site Name | C7: USGS Site ID | D7: River Mile | E7: Measured Discharge | F7: Measured TP | G7: Estimated Diversion TP | H7: Net SW Discharge | I7: Net SW Load | J7: Discharge Uncertainty Propogation of Errror | K7: GW Gain/Loss per Subreach | L7: GW Gain/Loss per RM | M7: Modeled Discharge with GW Gain/Loss | N7: Estimated GW TP Dial | O7: Constant GW TP RM 28.8 to 3.8 | P7: SW TP Concentration Dial | Q7: Predictive TP Mass Balance Model | S7: SW Load In/Out | T7: Load Gain/Loss per Subreach | U7: Load In/Out per RM | V7: Back-Calculated GW TP per Reach | W7: Measured TP Mass Balance Model | Y7: Notes
D8: mile | E8: ft3/s | F8: mg/L | G8: mg/L | H8: ft3/s | I8: lbs/d | J8: ft3/s | K8: ft3/s | L8: ft3/s/mi | M8: ft3/s | N8: mg/L | O8: mg/L | P8: mg/L | Q8: mg/L | R8: lbs/d | S8: lbs/d | T8: lbs/d | U8: lbs/d/mi | V8: mg/L | W8: mg/L | X8: lbs/d
A9: M | B9: Boise River below Diversion Dam near Boise, ID | C9: 13203510 | D9: 61.1 | E9: =3860-2255 -> 1605 | F9: 0.012 | H9: =E9 -> 1605 | I9: =F9*E9*$T$2 -> 103.8842028 | L9: 0 | M9: 1599 | N9: 0.01 | O9: 0.01 | P9: 0.012 | Q9: =F9 -> 0.012 | R9: =Q9*M9*$T$2 -> 103.4958506 | S9: =F9*M9*$T$2 -> 103.4958506 | T9: 0 | U9: 0 | V9: 0 | W9: =F9 -> 0.012 | X9: =W9*M9*$T$2 -> 103.4958506 | Y9: used unpublished value which was a detection below MRL, daily flow
A10: M | B10: Boise River at Veteran's Memorial Parkway at Boise, ID | C10: 13205642 | D10: 50.17 | E10: 759 | F10: 0.015 | H10: =E10 -> 759 | I10: =F10*E10*$T$2 -> 61.4081853 | J10: 28.84 | K10: 0 | L10: 0 | M10: =E10 -> 759 | N10: 0.01 | O10: 0.01 | P10: =F10 -> 0.015 | Q10: =P10 -> 0.015 | R10: 61.4081853 | S10: =F10*M10*$T$2 -> 61.4081853 | T10: 0 | U10: 0 | V10: 0 | W10: =F10 -> 0.015 | X10: 61.4081853 | Y10: used lab result which was above LT-MDL, below RL
A11: R | B11: Boise City Sewer Outflow at Boise, ID (Lander WWTP) | C11: 13205643 | D11: 50.01 | E11: 20.8 | F11: 2.23 | H11: =H10+E11 -> 779.8 | I11: =I10+(F11*E11*$T$2) -> 311.5932768 | L11: =(D10-D11)*Unmeasured_Gains_Losses!$B$6 -> -1.665917603 | M11: =M10+E11+L11 -> 778.1340824 | N11: 0.01 | O11: 0.01 | P11: =F11 -> 2.23 | Q11: =((P11*E11)+(Q10*M10)+(L11*Q10))/(M11) -> 0.0742083049 | R11: =F11 -> 2.23 | S11: =(F11*E11*$T$2) -> 250.1850915 | U11: =(D10-D11)*Unmeasured_Gains_Losses!$C$6 -> -0.01134663931 | W11: =((W10*M10)+(F11*E11)+(U11*$T$3))/M11 -> 0.07423771514 | X11: 311.5819302
A12: D | B12: Riverside Village | D12: 47.69 | E12: 0 | G12: 0.07 | H12: =H11+E12 -> 779.8 | I12: =I11+(G12*E12*$T$2) -> 311.5932768 | L12: =(D11-D12)*Unmeasured_Gains_Losses!$B$6 -> -24.15580524 | M12: =M11+E12+L12 -> 753.9782772 | N12: 0.01 | O12: 0.01 | Q12: =((Q11*M11)+(E12*Q11)+(L12*Q11))/M12 -> 0.0742083049 | R12: 301.7898113 | S12: =(G12*E12*$T$2) -> 0 | U12: =(D11-D12)*Unmeasured_Gains_Losses!$C$6 -> -0.16452627 | W12: =((W11*M11)+(E12*G12)+(U12*$T$3))/M12 -> 0.07657567218 | X12: 311.4174039
A13: M | B13: Boise River at Glenwood Bridge near Boise, ID | C13: 13206000 | D13: 47.5 | E13: 752 | F13: 0.07 | H13: =H12 -> 779.8 | I13: =I12 -> 311.5932768 | J13: 47.43 | K13: =E13-(E10+SUM(E11:E12)) -> -27.8 | L13: =(D12-D13)*Unmeasured_Gains_Losses!$B$6 -> -1.978277154 | M13: =M12+L13 -> 752 | N13: 0.01213783404 | O13: =O12+((($O$39-$O$10)/($D$10-$D$39))*(D12-D13)) -> 0.01213783404 | Q13: =((Q12*M12)+(L13*Q12))/M13 -> 0.0742083049 | R13: 300.9979796 | S13: =F13*M13*$T$2 -> 283.9285792 | T13: -0.1893470435 | U13: =(D12-D13)*Unmeasured_Gains_Losses!$C$6 -> -0.01347413418 | V13: =(T13/K13)*$T$3 -> 0.001262759091 | W13: =((W12*M12)+(U13*$T$3))/M13 -> 0.07677379694 | X13: 311.4039298 | Y13: mean daily Q
A14: D | B14: New Dry Creek Canal | D14: 46.01 | E14: -38 | G14: 0.07 | H14: =H13+E14 -> 741.8 | I14: =I13+(G14*E14*$T$2) -> 297.245822 | L14: =(D13-D14)*Unmeasured_Gains_Losses!$B$7 -> 6.689148936 | M14: =M13+E14+L14 -> 720.6891489 | N14: 0.02890295359 | O14: 0.02890295359 | Q14: =((Q13*M13)+(E14*Q13)+(L14*N14))/M14 -> 0.07378779871 | R14: 286.8307881 | S14: =(G14*E14*$T$2) -> -14.3474548 | U14: =(D13-D14)*Unmeasured_Gains_Losses!$C$7 -> 30.10867672 | W14: =((W13*M13)+(E14*G14)+(U14*$T$3))/M14 -> 0.08416389511 | X14: 327.1651517 | Y14: Not on North channel
A15: D | B15: Loss to North Channel (Boise River North Channel at Eagle, ID) | C15: 13206300 | D15: 45.51 | E15: =North_Channel!E5/-1 -> -177 | F15: 0.06 | H15: 564.8 | I15: =I14+(F15*E15*$T$2) -> 239.9638784 | L15: =(D14-D15)*Unmeasured_Gains_Losses!$B$7 -> 2.244680851 | M15: =M14+E15+L15 -> 545.9338298 | N15: 0.03452883263 | O15: 0.03452883263 | P15: =Q15 -> 0.07362638016 | Q15: =((Q14*M14)+(E15*Q14)+(L15*N15))/M15 -> 0.07362638016 | R15: 216.8036974 | S15: =(F15*E15*$T$2) -> -57.2819436 | U15: =(D14-D15)*Unmeasured_Gains_Losses!$C$7 -> 10.10358279 | W15: =((W14*M14)+(E15*W14)+(U15*$T$3))/M15 -> 0.08724901333 | X15: 256.9175429 | Y15: instantaneous Q, measured at RM 42.8. RM 45.5 Q = 161 + Ballentyne + Mace Mace
A16: D | B16: Lemp Canal | D16: 44.81 | E16: -2 | G16: 0.06 | H16: 562.8 | I16: =I15+(G16*E16*$T$2) -> 239.3166248 | L16: =(D15-D16)*Unmeasured_Gains_Losses!$B$7 -> 3.142553191 | M16: =M15+E16+L16 -> 547.076383 | N16: 0.04240506329 | O16: 0.04240506329 | Q16: =((Q15*M15)+(E16*Q15)+(L16*N16))/M16 -> 0.07344703656 | R16: 216.7282245 | S16: =(G16*E16*$T$2) -> -0.6472536 | U16: =(D15-D16)*Unmeasured_Gains_Losses!$C$7 -> 14.14501591 | W16: =((W15*M15)+(E16*G16)+(U16*$T$3))/M16 -> 0.09164105349 | X16: 270.4153053
A17: D | B17: Warm Springs Canal | D17: 44.5 | E17: -7 | G17: 0.06 | H17: 555.8 | I17: =I16+(G17*E17*$T$2) -> 237.0512372 | L17: =(D16-D17)*Unmeasured_Gains_Losses!$B$7 -> 1.391702128 | M17: =M16+E17+L17 -> 541.4680851 | N17: 0.0458931083 | O17: 0.0458931083 | Q17: =((Q16*M16)+(E17*Q16)+(L17*N17))/M17 -> 0.07337621639 | R17: 214.2996226 | S17: =(G17*E17*$T$2) -> -2.2653876 | U17: =(D16-D17)*Unmeasured_Gains_Losses!$C$7 -> 6.264221331 | W17: =((W16*M16)+(E17*G17)+(U17*$T$3))/M17 -> 0.09395943399 | X17: 274.414139
A18: R | B18: West Boise Sewer Outflow near Eagle, ID (West Boise WWTP) | C18: 13206303 | D18: 44.16 | E18: 22.9 | F18: 4.28 | H18: 578.7 | I18: =I17+(F18*E18*$T$2) -> 765.7064026 | L18: =(D17-D18)*Unmeasured_Gains_Losses!$B$7 -> 1.526382979 | M18: =M17+E18+L18 -> 565.8944681 | N18: 0.04971870605 | O18: 0.04971870605 | P18: =F18 -> 4.28 | Q18: =((P18*E18)+(Q17*M17)+(L18*N18))/(M18) -> 0.2435414674 | R18: 743.3641208 | S18: =(F18*E18*$T$2) -> 528.6551654 | U18: =(D17-D18)*Unmeasured_Gains_Losses!$C$7 -> 6.870436298 | W18: =((W17*M17)+(E18*F18)+(U18*$T$3))/M18 -> 0.2653530181 | X18: 809.9397406
A19: D | B19: Conway-Hamming Canal | D19: 43.5 | E19: 0 | G19: 0.27 | H19: 578.7 | I19: =I18+(G19*E19*$T$2) -> 765.7064026 | L19: =(D18-D19)*Unmeasured_Gains_Losses!$B$7 -> 2.962978723 | M19: =M18+E19+L19 -> 568.8574468 | N19: 0.05714486639 | O19: 0.05714486639 | Q19: =((Q18*M18)+(E19*Q18)+(L19*N19))/M19 -> 0.242570593 | R19: 744.2773903 | S19: =(G19*E19*$T$2) -> 0 | U19: =(D18-D19)*Unmeasured_Gains_Losses!$C$7 -> 13.33672928 | W19: =((W18*M18)+(E19*G19)+(U19*$T$3))/M19 -> 0.2683175172 | X19: 823.2764699
A20: D | B20: Thomas Aiken Canal | D20: 43.07 | E20: -1 | G20: 0.27 | H20: 577.7 | I20: =I19+(G20*E20*$T$2) -> 764.250082 | L20: =(D19-D20)*Unmeasured_Gains_Losses!$B$7 -> 1.930425532 | M20: 569.7878723 | N20: 0.06198312236 | O20: 0.06198312236 | Q20: =((Q19*M19)+(E20*Q19)+(L20*N20))/M20 -> 0.2419587676 | R20: 743.6144042 | S20: =(G20*E20*$T$2) -> -1.4563206 | U20: =(D19-D20)*Unmeasured_Gains_Losses!$C$7 -> 8.689081201 | W20: =((W19*M19)+(E20*G20)+(U20*$T$3))/M20 -> 0.270232783 | X20: 830.5092305
A21: D | B21: Mace-Catlin Canal | D21: 43.07 | E21: -6 | G21: 0.27 | H21: 571.7 | I21: =I20+(G21*E21*$T$2) -> 755.5121584 | L21: =(D20-D21)*Unmeasured_Gains_Losses!$B$7 -> 0 | M21: 563.7878723 | N21: 0.06198312236 | O21: 0.06198312236 | Q21: =((Q20*M20)+(E21*Q20)+(L21*N21))/M21 -> 0.2419587676 | R21: 735.78397 | S21: =(G21*E21*$T$2) -> -8.7379236 | U21: =(D20-D21)*Unmeasured_Gains_Losses!$C$7 -> 0 | W21: =((W20*M20)+(E21*G21)+(U21*$T$3))/M21 -> 0.2702352603 | X21: 821.7713069
A22: D | B22: Graham-Gilbert Canal | D22: 42.85 | E22: -1 | G22: 0.27 | H22: 570.7 | I22: =I21+(G22*E22*$T$2) -> 754.0558378 | L22: =(D21-D22)*Unmeasured_Gains_Losses!$B$7 -> 0.9876595745 | M22: 563.7755319 | N22: 0.06445850914 | O22: 0.06445850914 | Q22: =((Q21*M21)+(E22*Q21)+(L22*N22))/M22 -> 0.2416478108 | R22: 734.8222822 | S22: =(G22*E22*$T$2) -> -1.4563206 | U22: =(D21-D22)*Unmeasured_Gains_Losses!$C$7 -> 4.445576428 | W22: =((W21*M21)+(E22*G22)+(U22*$T$3))/M22 -> 0.2712241984 | X22: 824.7605628
A23: M | B23: Boise River South Channel at Eagle, ID | C23: 13206305 | D23: 42.8 | E23: 564 | F23: 0.27 | H23: =H22 -> 570.7 | I23: =I22 -> 754.0558378 | J23: 32.89 | K23: =E23-(E13+(SUM(E14:E22))) -> 21.1 | L23: =(D22-D23)*Unmeasured_Gains_Losses!$B$7 -> 0.2244680851 | M23: =M22+L23 -> 564 | N23: 0.06502109705 | O23: 0.06502109705 | Q23: =((Q22*M22)+(L23*N23))/M23 -> 0.2415775146 | R23: 734.9010053 | S23: =F23*M23*$T$2 -> 821.3648184 | T23: =S23-(S13+(SUM(S14:S22))) -> 94.97367824 | U23: =(D22-D23)*Unmeasured_Gains_Losses!$C$7 -> 1.010358279 | V23: =(T23/K23)*$T$3 -> 0.8345023697 | W23: =((W22*M22)+(U23*$T$3))/M23 -> 0.2714483792 | X23: 825.770921 | Y23: mean daily Q
A24: D | B24: Jon Wroten Canal | D24: 42.7 | E24: 0 | G24: 0.27 | H24: =H23+E24 -> 570.7 | I24: =I23+(G24*E24*$T$2) -> 754.0558378 | L24: =(D23-D24)*Unmeasured_Gains_Losses!$B$8 -> 7.460784314 | M24: =M23+E24+L24 -> 571.4607843 | N24: 0.06614627286 | O24: 0.06614627286 | Q24: =((Q23*M23)+(E24*Q23)+(L24*N24))/M24 -> 0.2392871481 | R24: 737.5628523 | S24: =(G24*E24*$T$2) -> 0 | U24: =(D23-D24)*Unmeasured_Gains_Losses!$C$8 -> -8.510009955 | W24: =((W23*M23)+(E24*G24)+(U24*$T$3))/M24 -> 0.2651435495 | X24: 817.2609111 | Y24: not in IDWR report
A25: D | B25: Barber Pumps | D25: 42.4 | E25: -0.1 | G25: 0.27 | H25: =H24+E25 -> 570.6 | I25: =I24+(G25*E25*$T$2) -> 753.9102057 | L25: =(D24-D25)*Unmeasured_Gains_Losses!$B$8 -> 22.38235294 | M25: =M24+E25+L25 -> 593.7431373 | N25: 0.06952180028 | O25: 0.06952180028 | Q25: =((Q24*M24)+(E25*Q24)+(L25*N25))/M25 -> 0.2328874987 | R25: 745.8268393 | S25: =(G25*E25*$T$2) -> -0.14563206 | U25: =(D24-D25)*Unmeasured_Gains_Losses!$C$8 -> -25.53002986 | W25: =((W24*M24)+(E25*G25)+(U25*$T$3))/M25 -> 0.2471757504 | X25: 791.5852492
A26: D | B26: Seven Suckers Canal | D26: 42.02 | E26: 0 | G26: 0.27 | H26: =H25+E26 -> 570.6 | I26: =I25+(G26*E26*$T$2) -> 753.9102057 | L26: =(D25-D26)*Unmeasured_Gains_Losses!$B$8 -> 28.35098039 | M26: =M25+E26+L26 -> 622.0941176 | N26: 0.07379746835 | O26: 0.07379746835 | Q26: =((Q25*M25)+(E26*Q25)+(L26*N26))/M26 -> 0.2256372158 | R26: 757.1118708 | S26: =(G26*E26*$T$2) -> 0 | U26: =(D25-D26)*Unmeasured_Gains_Losses!$C$8 -> -32.33803783 | W26: =((W25*M25)+(E26*G26)+(U26*$T$3))/M26 -> 0.2262735977 | X26: 759.2472113
A27: R | B27: Thurman Drain at Mouth near Eagle, ID | C27: 13208750 | D27: 41.89 | E27: 11 | F27: 0.05 | H27: =H26+E27 -> 581.6 | I27: =I26+(F27*E27*$T$2) -> 756.8767847 | L27: =(D26-D27)*Unmeasured_Gains_Losses!$B$8 -> 9.699019608 | M27: =M26+E27+L27 -> 642.7931373 | N27: 0.07526019691 | O27: 0.07526019691 | P27: =F27 -> 0.05 | Q27: =((P27*E27)+(Q26*M26)+(L27*N27))/(M27) -> 0.2203625499 | R27: 764.0156402 | S27: =(F27*E27*$T$2) -> 2.966579 | U27: =(D26-D27)*Unmeasured_Gains_Losses!$C$8 -> -11.06301294 | W27: =((W26*M26)+(F27*E27)+(U27*$T$3))/M27 -> 0.2166519793 | X27: 751.1507774
A28: M | B28: Boise River above Phyllis Diversion near Eagle, ID | C28: 13208800 | D28: 41.78 | E28: 651 | F28: 0.21 | H28: =H27 -> 581.6 | I28: =I27 -> 756.8767847 | J28: 37.52 | K28: =E28-(E23+SUM(E24:E27)) -> 76.1 | L28: =(D27-D28)*Unmeasured_Gains_Losses!$B$8 -> 8.206862745 | M28: =M27+L28 -> 651 | N28: 0.0764978903 | O28: 0.0764978903 | Q28: =((Q27*M27)+(L28*N28))/M28 -> 0.2185489132 | R28: 767.4018967 | S28: =F28*M28*$T$2 -> 737.3836638 | T28: =S28-(S23+(SUM(S24:S27))) -> -86.80210154 | U28: =(D27-D28)*Unmeasured_Gains_Losses!$C$8 -> -9.36101095 | V28: =(T28/K28)*$T$3 -> -0.2114717477 | W28: =((W27*M27)+(U28*$T$3))/M28 -> 0.211254817 | X28: 741.7897664 | Y28: instantaneous Q on different day, likely lower on 8/21/12
A29: D | B29: Phyllis Canal | D29: 41.41 | E29: -328 | G29: 0.21 | H29: =H28+E29 -> 253.6 | I29: =I28+(G29*E29*$T$2) -> 385.3532183 | L29: =(D28-D29)*Unmeasured_Gains_Losses!$B$9 -> -9.03286385 | M29: =M28+E29+L29 -> 313.9671362 | N29: 0.08066104079 | O29: 0.08066104079 | Q29: =((Q28*M28)+(E29*Q28)+(L29*Q28))/M29 -> 0.2185489132 | R29: 370.1059536 | S29: =(G29*E29*$T$2) -> -371.5235664 | U29: =(D28-D29)*Unmeasured_Gains_Losses!$C$9 -> -9.22893484 | W29: =((W28*M28)+(E29*G29)+(U29*$T$3))/M29 -> 0.2131938196 | X29: 361.0372652
A30: M | B30: GAIN FROM NORTH CHANNEL | C30: Gain from N. Channel | D30: 40.2 | E30: =North_Channel!L16 -> 92 | F30: 0.08 | H30: =H29+E30 -> 345.6 | I30: =I29+(F30*E30*$T$2) -> 425.0514391 | L30: =(D29-D30)*Unmeasured_Gains_Losses!$B$9 -> -29.5399061 | M30: =M29+E30+L30 -> 376.42723 | N30: 0.09427566807 | O30: 0.09427566807 | P30: =North_Channel!P16 -> 0.07719150173 | Q30: =((P30*E30)+(Q29*M29)+(L30*Q29))/(M30) -> 0.1840007168 | R30: 373.5887378 | S30: =(F30*E30*$T$2) -> 39.6982208 | U30: =(D29-D30)*Unmeasured_Gains_Losses!$C$9 -> -30.18111123 | W30: =((W29*M29)+(F30*E30)+(U30*$T$3))/M30 -> 0.1825062259 | X30: 370.5543748 | Y30: TP result from North Channel sample upstream (RM 41.8)
A31: M | B31: Boise River Below Eagle Island, ID | C31: 434050116260100 | D31: 39.65 | E31: 363 | F31: 0.18 | H31: =H30 -> 345.6 | I31: =I30 -> 425.0514391 | J31: 43.48 | K31: =E31-(E28+SUM(E29:E30)) -> -52 | L31: =(D30-D31)*Unmeasured_Gains_Losses!$B$9 -> -13.42723005 | M31: =M30+L31 -> 363 | N31: 0.100464135 | O31: 0.100464135 | Q31: =((Q30*M30)+(L31*Q30))/M31 -> 0.1840007168 | R31: 360.2627573 | S31: =F31*M31*$T$2 -> 352.4295852 | T31: =S31-(S28+(SUM(S29:S30))) -> -53.128733 | U31: =(D30-D31)*Unmeasured_Gains_Losses!$C$9 -> -13.71868692 | V31: =(T31/K31)*$T$3 -> 0.1894230769 | W31: =((W30*M30)+(U31*$T$3))/M31 -> 0.1822503743 | X31: 356.8356878
A32: R | B32: Eureka No. 1 Canal at Star Road near Star, ID | C32: 13209490 | D32: 36.63 | E32: 2.59 | F32: 0.16 | H32: =H31+E32 -> 348.19 | I32: =I31+(F32*E32*$T$2) -> 427.2866216 | L32: =(D31-D32)*Unmeasured_Gains_Losses!$B$10 -> 0.3809846154 | M32: =M31+E32+L32 -> 365.9709846 | N32: 0.1344444444 | O32: 0.1344444444 | P32: =F32 -> 0.16 | Q32: =((P32*E32)+(Q31*M31)+(L32*N32))/M32 -> 0.1837792729 | R32: 362.7742159 | S32: =(F32*E32*$T$2) -> 2.235182432 | U32: =(D31-D32)*Unmeasured_Gains_Losses!$C$10 -> -54.40297286 | W32: =((W31*M31)+(F32*E32)+(U32*$T$3))/M32 -> 0.1543429555 | X32: 304.6678974
A33: M | B33: Boise River near Star, ID | C33: 13210000 | D33: 36.4 | E33: 366 | F33: 0.15 | H33: =H32 -> 348.19 | I33: =I32 -> 427.2866216 | J33: 19.59 | K33: =E33-(E31+SUM(E32)) -> 0.41 | L33: =(D32-D33)*Unmeasured_Gains_Losses!$B$10 -> 0.02901538462 | M33: =M32+L33 -> 366 | N33: 0.1370323488 | O33: 0.1370323488 | Q33: =((Q32*M32)+(L33*N33))/M33 -> 0.183775567 | R33: 362.7956619 | S33: =F33*M33*$T$2 -> 296.118522 | T33: =S33-(S31+S32) -> -58.54624563 | U33: =(D32-D33)*Unmeasured_Gains_Losses!$C$10 -> -4.143272768 | V33: =(T33/K33)*$T$3 -> -26.47414634 | W33: =((W32*M32)+(U33*$T$3))/M33 -> 0.1522319286 | X33: 300.5246246
A34: D | B34: Canyon County Canal | D34: 36.32 | E34: -68 | G34: 0.15 | H34: =H33+E34 -> 280.19 | I34: =I33+(G34*E34*$T$2) -> 372.2700656 | L34: =(D33-D34)*Unmeasured_Gains_Losses!$B$11 -> -0.1609657948 | M34: =M33+E34+L34 -> 297.8390342 | N34: 0.1379324895 | O34: 0.1379324895 | Q34: =((Q33*M33)+(E34*Q33)+(L34*Q33))/M34 -> 0.183775567 | R34: 295.2314468 | S34: =(G34*E34*$T$2) -> -55.016556 | U34: =(D33-D34)*Unmeasured_Gains_Losses!$C$11 -> 0.5287423775 | W34: =((W33*M33)+(E34*G34)+(U34*$T$3))/M34 -> 0.1531529074 | X34: 246.036811
A35: D | B35: Caldwell Highline Canal | D35: 36.27 | E35: -35 | G35: 0.15 | H35: =H34+E35 -> 245.19 | I35: =I34+(G35*E35*$T$2) -> 343.9527206 | L35: =(D34-D35)*Unmeasured_Gains_Losses!$B$11 -> -0.1006036217 | M35: =M34+E35+L35 -> 262.7384306 | N35: 0.1384950774 | O35: 0.1384950774 | Q35: =((Q34*M34)+(E35*Q34)+(L35*Q34))/M35 -> 0.183775567 | R35: 260.4381498 | S35: =(G35*E35*$T$2) -> -28.317345 | U35: =(D34-D35)*Unmeasured_Gains_Losses!$C$11 -> 0.3304639859 | W35: =((W34*M34)+(E35*G35)+(U35*$T$3))/M35 -> 0.1538647451 | X35: 218.04993
A36: D | B36: Otter Mitigation | D36: 35.74 | E36: 0 | G36: 0.15 | H36: =H35+E36 -> 245.19 | I36: =I35+(G36*E36*$T$2) -> 343.9527206 | L36: =(D35-D36)*Unmeasured_Gains_Losses!$B$11 -> -1.06639839 | M36: =M35+E36+L36 -> 261.6720322 | N36: 0.1444585091 | O36: 0.1444585091 | Q36: =((Q35*M35)+(E36*Q35)+(L36*Q35))/M36 -> 0.183775567 | R36: 259.3810877 | S36: =(G36*E36*$T$2) -> 0 | U36: =(D35-D36)*Unmeasured_Gains_Losses!$C$11 -> 3.502918251 | W36: =((W35*M35)+(E36*G36)+(U36*$T$3))/M36 -> 0.1569736663 | X36: 221.5528482
A37: M | B37: Boise River near Middleton, ID | C37: 13210050 | D37: 31.43 | E37: 253 | F37: 0.18 | H37: =H36 -> 245.19 | I37: =I36 -> 343.9527206 | J37: 29.87 | K37: =E37-(E33+SUM(E34:E36)) -> -10 | L37: =(D36-D37)*Unmeasured_Gains_Losses!$B$11 -> -8.672032193 | M37: =M36+L37 -> 253 | N37: 0.1929535865 | O37: 0.1929535865 | Q37: =((Q36*M36)+(L37*Q36))/M37 -> 0.183775567 | R37: 250.7849794 | S37: =F37*M37*$T$2 -> 245.6327412 | T37: =S37-(S33+(SUM(S34:S36))) -> 32.8481202 | U37: =(D36-D37)*Unmeasured_Gains_Losses!$C$11 -> 28.48599559 | V37: =(T37/K37)*$T$3 -> -0.609 | W37: =((W36*M36)+(U37*$T$3))/M37 -> 0.1832287979 | X37: 250.0388438 | Y37: Idaho Power Gage - mean daily Q
A38: R | B38: Fifteenmile Creek at Mouth near Middleton, ID | C38: 13210815 | D38: 30.31 | E38: 92.8 | F38: 0.3 | H38: =H37+E38 -> 337.99 | I38: =I37+(F38*E38*$T$2) -> 494.1155558 | L38: =(D37-D38)*Unmeasured_Gains_Losses!$B$12 -> 45.92432432 | M38: =M37+E38+L38 -> 391.7243243 | N38: 0.2055555556 | O38: 0.2055555556 | P38: =F38 -> 0.3 | Q38: =((P38*E38)+(Q37*M37)+(L38*N38))/M38 -> 0.2138626918 | R38: 451.8650978 | S38: =(F38*E38*$T$2) -> 150.1628352 | U38: =(D37-D38)*Unmeasured_Gains_Losses!$C$12 -> 60.78352726 | W38: =((W37*M37)+(F38*E38)+(U38*$T$3))/M38 -> 0.2181791371 | X38: 460.9852063 | Y38: includes Fivemile Creek + Meridian WWTP + Tenmile Creek
A39: M | B39: Boise River at Middleton Road near Middleton, ID | C39: 13210820 | D39: 28.84 | E39: 452 | F39: 0.22 | H39: =H38 -> 337.99 | I39: =I38 -> 494.1155558 | J39: 30.64 | K39: =E39-(E37+E38) -> 106.2 | L39: =(D38-D39)*Unmeasured_Gains_Losses!$B$12 -> 60.27567568 | M39: =M38+L39 -> 452 | N39: 0.25 | O39: 0.25 | Q39: =((Q38*M38)+(L39*N39))/M39 -> 0.2186817198 | R39: 533.1435313 | S39: =F39*M39*$T$2 -> 536.3574832 | T39: =S39-(S37+S38) -> 140.5619068 | U39: =(D38-D39)*Unmeasured_Gains_Losses!$C$12 -> 79.77837954 | V39: =(T39/K39)*$T$3 -> 0.245386064 | W39: =((W38*M38)+(U39*$T$3))/M39 -> 0.2218072696 | X39: 540.7635858
A40: R | B40: Mill Slough below Grade Ditch near Middleton, ID | C40: 132108247 | D40: 27.23 | E40: 122 | F40: 0.19 | H40: =H39+E40 -> 459.99 | I40: =I39+(F40*E40*$T$2) -> 619.1433762 | L40: =(D39-D40)*Unmeasured_Gains_Losses!$B$13 -> 45.1495679 | M40: =M39+E40+L40 -> 619.1495679 | N40: 0.25 | O40: =O39 -> 0.25 | P40: =F40 -> 0.19 | Q40: =((P40*E40)+(Q39*M39)+(L40*N40))/M40 -> 0.2153139342 | R40: 719.0530607 | S40: =(F40*E40*$T$2) -> 125.0278204 | U40: =(D39-D40)*Unmeasured_Gains_Losses!$C$13 -> 54.36192979 | W40: =((W39*M39)+(F40*E40)+(U40*$T$3))/M40 -> 0.2156434017 | X40: 720.153336 | Y40: sum of North and South Middleton Drains, Star, Watts, Long Feeders. Middleton WWTP discharges below sampling location
A41: 0.3 | B41: Middleton WWTP on Boise River near Middleton, ID | C41: 434149116382200 | D41: 27.1 | E41: 1.01 | F41: 3.23 | H41: 461 | I41: 636.7395046 | L41: =(D40-D41)*Unmeasured_Gains_Losses!$B$13 -> 3.645617284 | M41: 623.8051852 | N41: 0.25 | O41: =O40 -> 0.25 | P41: =F41 -> 3.23 | Q41: =((P41*E41)+(Q40*M40)+(L41*N41))/M41 -> 0.220397709 | R41: 741.5651036 | S41: 17.59612849 | U41: =(D40-D41)*Unmeasured_Gains_Losses!$C$13 -> 4.389472592 | W41: =((W40*M40)+(E41*F41)+(U41*$T$3))/M41 -> 0.2205682558 | X41: =W41*M41*$T$2 -> 742.1389371 | Y41: 1.0 ft3/s on 8/22/12
A42: R | B42: Willow Creek at Middleton, ID | C42: 13210835 | D42: 26.95 | E42: 31.6 | F42: 0.19 | H42: 492.6 | I42: 669.1237598 | L42: =(D41-D42)*Unmeasured_Gains_Losses!$B$13 -> 4.206481481 | M42: 659.6116667 | N42: 0.25 | O42: 0.25 | P42: =F42 -> 0.19 | Q42: =((P42*E42)+(Q41*M41)+(L42*N42))/M42 -> 0.2191302267 | R42: 779.6215677 | S42: 32.38425512 | U42: =(D41-D42)*Unmeasured_Gains_Losses!$C$13 -> 5.064776067 | W42: =((W41*M41)+(F42*E42)+(U42*$T$3))/M42 -> 0.2191207828 | X42: 779.5879683
A43: R | B43: Mason Slough near Caldwell, ID | C43: 13210849 | D43: 25.57 | E43: 13.2 | F43: 0.22 | H43: 505.8 | I43: 684.7872969 | L43: =(D42-D43)*Unmeasured_Gains_Losses!$B$13 -> 38.69962963 | M43: 711.5112963 | N43: 0.25 | O43: 0.25 | P43: =F43 -> 0.22 | Q43: =((P43*E43)+(Q42*M42)+(L43*N43))/M43 -> 0.2208253927 | R43: 847.4694269 | S43: 15.66353712 | U43: =(D42-D43)*Unmeasured_Gains_Losses!$C$13 -> 46.59593982 | W43: =((W42*M42)+(F43*E43)+(U43*$T$3))/M43 -> 0.2193604711 | X43: 841.8474452
A44: R | B44: Mason Creek near Caldwell, ID | C44: 13210983 | D44: 24.95 | E44: 155 | F44: 0.31 | H44: 660.8 | I44: 943.9584259 | L44: =(D43-D44)*Unmeasured_Gains_Losses!$B$13 -> 17.38679012 | M44: 883.8980864 | N44: 0.25 | O44: 0.25 | P44: =F44 -> 0.31 | Q44: =((P44*E44)+(Q43*M43)+(L44*N44))/M44 -> 0.2370368962 | R44: 1130.085686 | S44: 259.171129 | U44: =(D43-D44)*Unmeasured_Gains_Losses!$C$13 -> 20.93440775 | W44: =((W43*M43)+(F44*E44)+(U44*$T$3))/M44 -> 0.2353310513 | X44: 1121.952982
A45: D | B45: Riverside Canal at HWY 20-26 Xing at Caldwell, ID | C45: 132109853 | D45: 24.57 | E45: -224 | F45: 0.25 | H45: 436.8 | I45: 641.9067459 | L45: =(D44-D45)*Unmeasured_Gains_Losses!$B$13 -> 10.65641975 | M45: 670.5545062 | N45: 0.25 | O45: 0.25 | Q45: =((Q44*M44)+(L45*N45)+(E45*Q44))/M45 -> 0.2372429052 | R45: =Q45*M45*$T$2 -> 858.0657111 | S45: -302.05168 | U45: =(D44-D45)*Unmeasured_Gains_Losses!$C$13 -> 12.83076604 | W45: =((W44*M44)+(F45*E45)+(U45*$T$3))/M45 -> 0.230238515 | X45: 832.732068 | Y45: 181 ft3/s measured by IDWR on 8/22/12
A46: R | B46: Hartley Drain near Caldwell, ID | C46: 13210988 | D46: 24.43 | E46: 34.9 | F46: 0.24 | H46: 471.7 | I46: 687.0850472 | L46: =(D45-D46)*Unmeasured_Gains_Losses!$B$13 -> 3.926049383 | M46: 709.3805556 | N46: 0.25 | O46: 0.25 | P46: =F46 -> 0.24 | Q46: =((P46*E46)+(Q45*M45)+(L46*N46))/M46 -> 0.2374491522 | R46: 908.5380741 | S46: 45.17830128 | U46: =(D45-D46)*Unmeasured_Gains_Losses!$C$13 -> 4.72712433 | W46: =((W45*M45)+(F46*E46)+(U46*$T$3))/M46 -> 0.2306799578 | X46: 882.6374936
A47: D | B47: Sebree Canal | D47: 24.03 | E47: -321 | G47: 0.24 | H47: 150.7 | I47: =I46+(G47*E47*$T$2) -> 271.548236 | L47: =(D46-D47)*Unmeasured_Gains_Losses!$B$13 -> 11.21728395 | M47: =M46+E47+L47 -> 399.5978395 | N47: 0.25 | O47: 0.25 | Q47: =((Q46*M46)+(E47*Q46)+(L47*N47))/M47 -> 0.2378014725 | R47: 512.5436998 | S47: =(G47*E47*$T$2) -> -415.5368112 | U47: =(D46-D47)*Unmeasured_Gains_Losses!$C$13 -> 13.50606951 | W47: =((W46*M46)+(E47*G47)+(U47*$T$3))/M47 -> 0.2229839004 | X47: 480.6067519 | Y47: Also known as Farmer's Co-op Ditch
A48: D | B48: Campbell Canal | D48: 24.02 | E48: -19 | G48: 0.24 | H48: 131.7 | I48: =I47+(G48*E48*$T$2) -> 246.9525992 | L48: =(D47-D48)*Unmeasured_Gains_Losses!$B$13 -> 0.2804320988 | M48: =M47+E48+L48 -> 380.8782716 | N48: 0.25 | O48: 0.25 | Q48: =((Q47*M47)+(E48*Q47)+(L48*N48))/M48 -> 0.237810454 | R48: 488.5515194 | S48: =(G48*E48*$T$2) -> -24.5956368 | U48: =(D47-D48)*Unmeasured_Gains_Losses!$C$13 -> 0.3376517378 | W48: =((W47*M47)+(E48*G48)+(U48*$T$3))/M48 -> 0.2221352368 | X48: 456.3487669 | Y48: Include this in model because Campbell Canal is diverted before Sebree Canal is measured
A49: M | B49: Boise River at HWY 20-26 Crossing near Caldwell, ID | C49: 13211000 | D49: 23.98 | E49: 382 | F49: 0.22 | H49: =H48 -> 131.7 | I49: =I48 -> 246.9525992 | J49: 94.93 | K49: =E49-(E39+(SUM(E40:E48))) -> 136.29 | L49: =(D48-D49)*Unmeasured_Gains_Losses!$B$13 -> 1.121728395 | M49: =M48+L49 -> 382 | N49: 0.25 | O49: 0.25 | Q49: =((Q48*M48)+(L49*N49))/M49 -> 0.2378462481 | R49: 490.0641084 | S49: =F49*M49*$T$2 -> 453.2932712 | T49: =S49-(S39+(SUM(S40:S48))) -> 164.0987446 | U49: =(D48-D49)*Unmeasured_Gains_Losses!$C$13 -> 1.350606951 | V49: =(T49/K49)*$T$3 -> 0.2232276763 | W49: =((W48*M48)+(U49*$T$3))/M49 -> 0.2221384447 | X49: 457.6993738 | Y49: Measuring section did not include Seebree Q or Campbell Q, WQ at Seebree & Cambell assumed the same
A50: D | B50: Shipley Pumps | D50: 23.19 | E50: 0 | G50: 0.22 | H50: =H49+E50 -> 131.7 | I50: =I49+(G50*E50*$T$2) -> 246.9525992 | L50: =(D49-D50)*Unmeasured_Gains_Losses!$B$14 -> 3.361372549 | M50: =M49+E50+L50 -> 385.3613725 | N50: 0.25 | O50: 0.25 | Q50: =((Q49*M49)+(E50*Q49)+(L50*N50))/M50 -> 0.2379522611 | R50: 494.5967344 | S50: =(G50*E50*$T$2) -> 0 | U50: =(D49-D50)*Unmeasured_Gains_Losses!$C$14 -> 6.128444564 | W50: =((W49*M49)+(E50*G50)+(U50*$T$3))/M50 -> 0.2231492253 | X50: 463.8278184
A51: D | B51: Wagner Pumps | D51: 23.09 | E51: -0.4 | G51: 0.22 | H51: =H50+E51 -> 131.3 | I51: =I50+(G51*E51*$T$2) -> 246.4779465 | L51: =(D50-D51)*Unmeasured_Gains_Losses!$B$14 -> 0.4254901961 | M51: =M50+E51+L51 -> 385.3868627 | N51: 0.25 | O51: 0.25 | Q51: =((Q50*M50)+(E51*Q50)+(L51*N51))/M51 -> 0.2379655625 | R51: 494.6570997 | S51: =(G51*E51*$T$2) -> -0.47465264 | U51: =(D50-D51)*Unmeasured_Gains_Losses!$C$14 -> 0.7757524765 | W51: =((W50*M50)+(E51*G51)+(U51*$T$3))/M51 -> 0.2232793164 | X51: 464.1289182
A52: R | B52: Caldwell WWTP on Boise River at Caldwell, ID | C52: 434038116420900 | D52: 22.55 | E52: 12.85 | F52: 1.83 | H52: =H51+E52 -> 144.15 | I52: =I51+(F52*E52*$T$2) -> 373.3153801 | L52: =(D51-D52)*Unmeasured_Gains_Losses!$B$14 -> 2.297647059 | M52: =M51+E52+L52 -> 400.5345098 | N52: 0.25 | O52: 0.25 | P52: =F52 -> 1.83 | Q52: =((P52*E52)+(Q51*M51)+(L52*N52))/M52 -> 0.2891104524 | R52: 624.592784 | S52: =(F52*E52*$T$2) -> 126.8374336 | U52: =(D51-D52)*Unmeasured_Gains_Losses!$C$14 -> 4.189063373 | W52: =((W51*M51)+(E52*F52)+(U52*$T$3))/M52 -> 0.2754845329 | X52: 595.1554152
A53: R | B53: Indian Creek at Mouth near Caldwell, ID | C53: 13211445 | D53: 22.44 | E53: 69.7 | F53: 0.45 | H53: =H52+E53 -> 213.85 | I53: =I52+(F53*E53*$T$2) -> 542.4912898 | L53: =(D52-D53)*Unmeasured_Gains_Losses!$B$14 -> 0.4680392157 | M53: =M52+E53+L53 -> 470.702549 | N53: 0.25 | O53: 0.25 | P53: =F53 -> 0.45 | Q53: =((P53*E53)+(Q52*M52)+(L53*N53))/M53 -> 0.3128955291 | R53: 794.3998188 | S53: =(F53*E53*$T$2) -> 169.1759097 | U53: =(D52-D53)*Unmeasured_Gains_Losses!$C$14 -> 0.8533277241 | W53: =((W52*M52)+(F53*E53)+(U53*$T$3))/M53 -> 0.3013883577 | X53: 765.1846526
A54: M | B54: Boise River below WWTP near Caldwell, ID | C54: 13211600 | D54: 21.43 | E54: 475 | F54: 0.3 | H54: =H53 -> 213.85 | I54: =I53 -> 542.4912898 | J54: 85.93 | K54: =E54-(E49+(SUM(E50:E53))) -> 10.85 | L54: =(D53-D54)*Unmeasured_Gains_Losses!$B$14 -> 4.29745098 | M54: =M53+L54 -> 475 | N54: 0.25 | O54: 0.25 | Q54: =((Q53*M53)+(L54*N54))/M54 -> 0.3123264966 | R54: 800.1946951 | S54: =F54*M54*$T$2 -> 768.61365 | T54: =S54-(S49+(SUM(S50:S53))) -> 19.78168815 | U54: =(D53-D54)*Unmeasured_Gains_Losses!$C$14 -> 7.835100012 | V54: =(T54/K54)*$T$3 -> 0.3380184332 | W54: =((W53*M53)+(U54*$T$3))/M54 -> 0.3017197597 | X54: 773.0197526
A55: D | B55: Simplot Pumps | D55: 20.08 | E55: -0.4 | G55: 0.3 | H55: =H54+E55 -> 213.45 | I55: =I54+(G55*E55*$T$2) -> 541.8440362 | L55: =(D54-D55)*Unmeasured_Gains_Losses!$B$15 -> 18.81109185 | M55: =M54+E55+L55 -> 493.4110919 | N55: 0.25 | O55: 0.25 | Q55: =((Q54*M54)+(E55*Q54)+(L55*N55))/M55 -> 0.3099503249 | R55: 824.8865697 | S55: =(G55*E55*$T$2) -> -0.6472536 | U55: =(D54-D55)*Unmeasured_Gains_Losses!$C$15 -> 41.29186311 | W55: =((W54*M54)+(E55*G55)+(U55*$T$3))/M55 -> 0.3057335914 | X55: 813.6643621
A56: D | B56: Eureka No.2 Canal | D56: 20.08 | E56: -106 | G56: 0.3 | H56: 107.45 | I56: 370.3218322 | L56: =(D55-D56)*Unmeasured_Gains_Losses!$B$15 -> 0 | M56: =M55+E56+L56 -> 387.4110919 | N56: 0.25 | O56: 0.25 | Q56: 0.3099503249 | R56: 647.6753602 | S56: -171.522204 | U56: =(D55-D56)*Unmeasured_Gains_Losses!$C$15 -> 0 | W56: 0.307302366 | X56: 642.1421581
A57: D | B57: Upper Center Point Canal | D57: 20.08 | E57: -19 | G57: 0.3 | H57: 88.45 | I57: 339.5772862 | L57: =(D56-D57)*Unmeasured_Gains_Losses!$B$15 -> -4.950401729e-14 | M57: 368.4110919 | N57: 0.25 | O57: 0.25 | Q57: 0.3099503249 | R57: 615.9110867 | S57: -30.744546 | U57: =(D56-D57)*Unmeasured_Gains_Losses!$C$15 -> -1.086653088e-13 | W57: 0.3076789696 | X57: 611.3976121
A58: D | B58: McManus and Teater Canal | D58: 20 | E58: 0 | G58: 0.3 | H58: 88.45 | I58: 339.5772862 | L58: =(D57-D58)*Unmeasured_Gains_Losses!$B$15 -> 1.114731369 | M58: 369.5258232 | N58: 0.25 | O58: 0.25 | Q58: 0.3097694756 | R58: 617.4142407 | S58: 0 | U58: =(D57-D58)*Unmeasured_Gains_Losses!$C$15 -> 2.446925221 | W58: 0.3079784817 | X58: 613.8445374
A59: D | B59: Vale Pumps | D59: 19.07 | E59: 0 | G59: 0.3 | H59: 88.45 | I59: 339.5772862 | L59: =(D58-D59)*Unmeasured_Gains_Losses!$B$15 -> 12.95875217 | M59: 382.4845754 | N59: 0.25 | O59: 0.25 | Q59: 0.3077444584 | R59: 634.8884053 | S59: 0 | U59: =(D58-D59)*Unmeasured_Gains_Losses!$C$15 -> 28.4455057 | W59: 0.3113321961 | X59: 642.2900431
A60: D | B60: Lower Center Point Canal | D60: 18.06 | E60: -39 | G60: 0.32 | H60: 49.45 | I60: 272.2629118 | L60: =(D59-D60)*Unmeasured_Gains_Losses!$B$15 -> 14.07348354 | M60: 357.5580589 | N60: 0.25 | O60: 0.25 | Q60: 0.3054716368 | R60: 589.1293935 | S60: -67.3143744 | U60: =(D59-D60)*Unmeasured_Gains_Losses!$C$15 -> 30.89243092 | W60: 0.3141508846 | X60: 605.8680996
A61: M | B61: Boise River at Notus, ID | C61: 13212500 | D61: 15.66 | E61: 391 | F61: 0.32 | H61: =H60 -> 49.45 | I61: =I60 -> 272.2629118 | J61: 45.16 | K61: =E61-(E54+(SUM(E55:E60))) -> 80.4 | L61: =(D60-D61)*Unmeasured_Gains_Losses!$B$15 -> 33.44194107 | M61: =M60+L61 -> 391 | N61: 0.25 | O61: 0.25 | Q61: =((Q60*M60)+(L61*N61))/M61 -> 0.3007271887 | R61: 634.2240117 | S61: =F61*M61*$T$2 -> 674.8697536 | T61: =S61-(S54+(SUM(S55:S60))) -> 176.4844816 | U61: =(D60-D61)*Unmeasured_Gains_Losses!$C$15 -> 73.40775664 | V61: =(T61/K61)*$T$3 -> 0.4069651741 | W61: =((W60*M60)+(U61*$T$3))/M61 -> 0.3220892222 | X61: 679.2758562
A62: D | B62: Bowman and Swisher Canal | D62: 14.98 | E62: -11 | G62: 0.32 | H62: =H61+E62 -> 38.45 | I62: =I61+(G62*E62*$T$2) -> 253.2768062 | L62: =(D61-D62)*Unmeasured_Gains_Losses!$B$16 -> 3.533236575 | M62: 383.5332366 | N62: 0.25 | O62: 0.25 | Q62: =((Q61*M61)+(E62*Q61)+(L62*N62))/M62 -> 0.3002598729 | R62: 621.1457676 | S62: =(G62*E62*$T$2) -> -18.9861056 | U62: =(D61-D62)*Unmeasured_Gains_Losses!$C$16 -> 3.054523448 | W62: =((W61*M61)+(E62*G62)+(U62*$T$3))/M62 -> 0.3206584956 | X62: 663.3442741
A63: R | B63: Conway Gulch at Notus. ID | C63: 13212550 | D63: 14.22 | E63: 37 | F63: 0.32 | H63: 75.45 | I63: =I62+(F63*E63*$T$2) -> 317.1391614 | L63: =(D62-D63)*Unmeasured_Gains_Losses!$B$16 -> 3.948911466 | M63: =M62+E63+L63 -> 424.482148 | N63: 0.25 | O63: 0.25 | P63: =F63 -> 0.32 | Q63: =((P63*E63)+(Q62*M62)+(L63*N63))/M63 -> 0.3015129595 | R63: 690.3330128 | S63: =(F63*E63*$T$2) -> 63.8623552 | U63: =(D62-D63)*Unmeasured_Gains_Losses!$C$16 -> 3.413879148 | W63: =((W62*M62)+(F63*E63)+(U63*$T$3))/M63 -> 0.3191091078 | X63: 730.6205084 | Y63: includes Notus WWTP - seasonal discharge not during synoptic
A64: D | B64: Baxter Canal | D64: 13.33 | E64: -14 | G64: 0.32 | H64: 61.45 | I64: =I63+(G64*E64*$T$2) -> 292.975027 | L64: =(D63-D64)*Unmeasured_Gains_Losses!$B$16 -> 4.624383164 | M64: 415.1065312 | N64: 0.25 | O64: 0.25 | Q64: =((Q63*M63)+(E64*Q63)+(L64*N64))/M64 -> 0.3009390932 | R64: 673.8006151 | S64: =(G64*E64*$T$2) -> -24.1641344 | U64: =(D63-D64)*Unmeasured_Gains_Losses!$C$16 -> 3.99783216 | W64: =((W63*M63)+(E64*G64)+(U64*$T$3))/M64 -> 0.3173096607 | X64: 710.4542062
A65: R | B65: Unnamed Drain Near Notus, ID | C65: 434335116510400 | D65: 12.33 | E65: 12.2 | F65: 0.21 | H65: 73.65 | I65: =I64+(F65*E65*$T$2) -> 306.7938914 | L65: =(D64-D65)*Unmeasured_Gains_Losses!$B$16 -> 5.195936139 | M65: =M64+E65+L65 -> 432.5024673 | N65: 0.25 | O65: 0.25 | P65: =F65 -> 0.21 | Q65: =((P65*E65)+(Q64*M64)+(L65*N65))/M65 -> 0.2977619247 | R65: 694.6259136 | S65: =(F65*E65*$T$2) -> 13.81886436 | U65: =(D64-D65)*Unmeasured_Gains_Losses!$C$16 -> 4.491946247 | W65: =((W64*M64)+(F65*E65)+(U65*$T$3))/M65 -> 0.3123961686 | X65: 728.7650168
A66: D | B66: Andrews Canal | D66: 11.09 | E66: -20 | G66: 0.32 | H66: 53.65 | I66: =I65+(G66*E66*$T$2) -> 272.2736994 | L66: =(D65-D66)*Unmeasured_Gains_Losses!$B$16 -> 6.442960813 | M66: =M65+E66+L66 -> 418.9454282 | N66: 0.25 | O66: 0.25 | Q66: =((Q65*M65)+(E66*Q65)+(L66*N66))/M66 -> 0.2970273942 | R66: 671.1926456 | S66: =(G66*E66*$T$2) -> -34.520192 | U66: =(D65-D66)*Unmeasured_Gains_Losses!$C$16 -> 5.570013346 | W66: =((W65*M65)+(E66*G66)+(U66*$T$3))/M66 -> 0.3096937655 | X66: 699.8148381
A67: R | B67: Unnamed Drain Near Dixie Drain near Notus, ID | C67: 434348116523600 | D67: 10.93 | E67: 23 | F67: 0.2 | H67: 76.65 | I67: =I66+(F67*E67*$T$2) -> 297.0850874 | L67: =(D66-D67)*Unmeasured_Gains_Losses!$B$16 -> 0.8313497823 | M67: 442.7767779 | N67: 0.25 | O67: 0.25 | P67: =F67 -> 0.2 | Q67: =((P67*E67)+(Q66*M66)+(L67*N67))/M67 -> 0.2918990171 | R67: 697.1250631 | S67: =(F67*E67*$T$2) -> 24.811388 | U67: =(D66-D67)*Unmeasured_Gains_Losses!$C$16 -> 0.7187113995 | W67: =((W66*M66)+(F67*E67)+(U67*$T$3))/M67 -> 0.3037151948 | X67: 725.3449375
A68: R | B68: Dixie Drain near Wilder, ID | C68: 13212890 | D68: 10.53 | E68: 264 | F68: 0.33 | H68: 340.65 | I68: =I67+(F68*E68*$T$2) -> 766.991201 | L68: =(D67-D68)*Unmeasured_Gains_Losses!$B$16 -> 2.078374456 | M68: 708.8551524 | N68: 0.25 | O68: 0.25 | P68: =F68 -> 0.33 | Q68: =((P68*E68)+(Q67*M67)+(L68*N68))/M68 -> 0.3059661754 | R68: 1169.83375 | S68: =(F68*E68*$T$2) -> 469.9061136 | U68: =(D67-D68)*Unmeasured_Gains_Losses!$C$16 -> 1.796778499 | W68: =((W67*M67)+(F68*E68)+(U68*$T$3))/M68 -> 0.3130839285 | X68: 1197.04783
A69: D | B69: Mammon Pumps | D69: 10 | E69: -7 | G69: 0.31 | H69: 333.65 | I69: =I68+(G69*E69*$T$2) -> 755.2866984 | L69: =(D68-D69)*Unmeasured_Gains_Losses!$B$16 -> 2.753846154 | M69: =M68+E69+L69 -> 704.6089985 | N69: 0.25 | O69: 0.25 | Q69: =((Q68*M68)+(E69*Q68)+(L69*N69))/M69 -> 0.305747441 | R69: 1161.994961 | S69: =(G69*E69*$T$2) -> -11.7045026 | U69: =(D68-D69)*Unmeasured_Gains_Losses!$C$16 -> 2.380731511 | W69: =((W68*M68)+(E69*G69)+(U69*$T$3))/M69 -> 0.3125173549 | X69: 1187.724059
A70: M | B70: Boise River at HWY 95 Crossing near Parma, ID | C70: 13212900 | D70: 8.77 | E70: 711 | F70: 0.31 | H70: =H69 -> 333.65 | I70: =I69 -> 755.2866984 | J70: 39.67 | K70: =E70-(E61+SUM(E62:E69)) -> 35.8 | L70: =(D69-D70)*Unmeasured_Gains_Losses!$B$16 -> 6.391001451 | M70: =M69+L70 -> 711 | N70: 0.25 | O70: 0.25 | Q70: =((Q69*M69)+(L70*N70))/M70 -> 0.3052463411 | R70: 1170.612875 | S70: =F70*M70*$T$2 -> 1188.84305 | T70: =S70-(S61+(SUM(S62:S69))) -> 30.94950964 | U70: =(D69-D70)*Unmeasured_Gains_Losses!$C$16 -> 5.525093883 | V70: =(T70/K70)*$T$3 -> 0.1602793296 | W70: =((W69*M69)+(U70*$T$3))/M70 -> 0.3111489253 | X70: 1193.249152
A71: D | B71: Hass Canal | D71: 8.05 | E71: -13 | G71: 0.31 | H71: =H70+E71 -> 320.65 | I71: =I70+(G71*E71*$T$2) -> 733.549765 | L71: =(D70-D71)*Unmeasured_Gains_Losses!$B$17 -> 11.29979879 | M71: =M70+E71+L71 -> 709.2997988 | N71: 0.25 | O71: 0.25 | Q71: =((Q70*M70)+(E71*Q70)+(L71*N71))/M71 -> 0.3043662161 | R71: 1164.446421 | S71: =(G71*E71*$T$2) -> -21.7369334 | U71: =(D70-D71)*Unmeasured_Gains_Losses!$C$17 -> 13.1117691 | W71: =((W70*M70)+(E71*G71)+(U71*$T$3))/M71 -> 0.3096402842 | X71: 1184.623988
A72: D | B72: Parma Canal | D72: 7.47 | E72: -36 | G72: 0.31 | H72: =H71+E72 -> 284.65 | I72: =I71+(G72*E72*$T$2) -> 673.3551802 | L72: =(D71-D72)*Unmeasured_Gains_Losses!$B$17 -> 9.102615694 | M72: 682.4024145 | N72: 0.25 | O72: 0.25 | Q72: =((Q71*M71)+(E72*Q71)+(L72*N72))/M72 -> 0.3036410211 | R72: 1117.620159 | S72: =(G72*E72*$T$2) -> -60.1945848 | U72: =(D71-D72)*Unmeasured_Gains_Losses!$C$17 -> 10.56225845 | W72: =((W71*M71)+(E72*G72)+(U72*$T$3))/M72 -> 0.308360604 | X72: 1134.991662
A73: D | B73: Island Highline Canal | D73: 6.33 | E73: -58 | G73: 0.3 | H73: =H72+E73 -> 226.65 | I73: =I72+(G73*E73*$T$2) -> 579.5034082 | L73: =(D72-D73)*Unmeasured_Gains_Losses!$B$17 -> 17.89134809 | M73: 642.2937626 | N73: 0.25 | O73: 0.25 | Q73: =((Q72*M72)+(E73*Q72)+(L73*N73))/M73 -> 0.3021468292 | R73: =Q73*M73*$T$2 -> 1046.754831 | S73: =(G73*E73*$T$2) -> -93.851772 | U73: =(D72-D73)*Unmeasured_Gains_Losses!$C$17 -> 20.76030108 | W73: =((W72*M72)+(E73*G73)+(U73*$T$3))/M73 -> 0.3065185523 | X73: =W73*M73*$T$2 -> 1061.900191
A74: D | B74: Crawforth Pumps | D74: 4.32 | E74: 0 | G74: 0.3 | H74: =H73+E74 -> 226.65 | I74: =I73+(G74*E74*$T$2) -> 579.5034082 | L74: =(D73-D74)*Unmeasured_Gains_Losses!$B$17 -> 31.54527163 | M74: 673.8390342 | N74: 0.25 | O74: 0.25 | Q74: =((Q73*M73)+(E74*Q73)+(L74*N74))/M74 -> 0.2997056143 | R74: 1089.291895 | S74: =(G74*E74*$T$2) -> 0 | U74: =(D73-D74)*Unmeasured_Gains_Losses!$C$17 -> 36.60368875 | W74: =((W73*M73)+(E74*G74)+(U74*$T$3))/M74 -> 0.3022401814 | X74: 1098.50388
A75: D | B75: McConnel Island Canal | D75: 3.91 | E75: -58 | G75: 0.3 | H75: =H74+E75 -> 168.65 | I75: =I74+(G75*E75*$T$2) -> 485.6516362 | L75: =(D74-D75)*Unmeasured_Gains_Losses!$B$17 -> 6.434607646 | M75: 622.2736419 | N75: 0.25 | O75: 0.25 | Q75: =((Q74*M74)+(E75*Q74)+(L75*N75))/M75 -> 0.2991916344 | R75: 1004.208933 | S75: =(G75*E75*$T$2) -> -93.851772 | U75: =(D74-D75)*Unmeasured_Gains_Losses!$C$17 -> 7.466424073 | W75: =((W74*M74)+(E75*G75)+(U75*$T$3))/M75 -> 0.3015482015 | X75: 1012.118532
A76: M | B76: Boise River near Parma, ID | C76: 13213000 | D76: 3.8 | E76: 624 | F76: 0.3 | H76: =H75 -> 168.65 | I76: =I75 -> 485.6516362 | J76: 42.25 | K76: =E76-(E70+(SUM(E71:E75))) -> 78 | L76: =(D75-D76)*Unmeasured_Gains_Losses!$B$17 -> 1.726358149 | M76: =M75+L76 -> 624 | N76: 0.25 | O76: 0.25 | Q76: =((Q75*M75)+(L76*N76))/M76 -> 0.2990555408 | R76: 1006.536832 | S76: =F76*M76*$T$2 -> 1009.715616 | T76: =S76-(S70+(SUM(S71:S75))) -> 90.5076284 | U76: =(D75-D76)*Unmeasured_Gains_Losses!$C$17 -> 2.003186946 | V76: =(T76/K76)*$T$3 -> 0.2151282051 | W76: =((W75*M75)+(U76*$T$3))/M76 -> 0.301309112 | X76: 1014.121719
M77: flow-weighted TP in GW gain: | N77: =(SUM(,N76*L76,N75*L75,N74*L74,N73*L73,N72*L72,N71*L71,N70*L70,N69*L69,N68*L68,N67*L67,N66*L66,N65*L65,N64*L64,N63*L63,N62*L62,N61*L61,N60*L60,N59*L59,N58*L58,N57*L57,N56*L56,N55*L55,N54*L54,N53*L53,N52*L52,N51*L51,N50*L50,N49*L49,N48*L48,N47*L47,N46*L46,N45*L45,N44*L44,N43*L43,N42*L42,N41*L41,N40*L40,N39*L39,N38*L38,N33*L33,N32*L32,N28*L28,N27*L27,N26*L26,N25*L25,N24*L24,N23*L23,N22*L22,N21*L21,N20*L20,N19*L19,L18*N18,L17*N17,L16*N16,L15*N15,N14*L14))/(SUM(L14:L28,L32:L33,L38:L76)) -> 0.2133536863
A79: Sites Outside Modeling Reach
A80: R | B80: Sand Hollow Creek at Mouth near Parma, ID | C80: 13213080 | D80: NA | E80: 169 | F80: 0.35 | P80: Boise River near Parma + Sand Hollow Creek at Mouth | Q80: =((Q76*$E$76)+($E$80*$F$80))/($E$76+$E$80) -> 0.3099125567 | R80: =Q80*(E80+M76)*$T$2 -> 1325.578919 | W80: =((W76*$E$76)+($E$80*$F$80))/($E$76+$E$80) -> 0.3116858586 | X80: =W80*(E80+E76)*$T$2 -> 1333.163806
A81: SR | B81: Snake River near Adrian, OR | C81: 13173600 | D81: NA | E81: 5497 | F81: 0.05 | P81: Snake River NR Adrian | Q81: =F81 -> 0.05 | R81: =Q81*E81*$T$2 -> 1482.480433 | W81: 0.05 | X81: =W81*E81*$T$2 -> 1482.480433
K82: =E83-E81-E80-E76 -> -10 | P82: Other Sources | R82: =R83-R81-R80 -> -4.464323294 | X82: =X83-X81-X80 -> -4.476381937
A83: SR | B83: Snake River at Nyssa, OR | C83: 13213100 | D83: NA | E83: 6280 | F83: 0.09 | P83: Snake River at Nyssa | Q83: =(($E$81*$F$81)+(Q80*($E$80+$E$76)))/($E$81+$E$80+$E$76) -> 0.08276799006 | R83: =Q83*E83*$T$2 -> 2803.595029 | W83: =(($E$81*$F$81)+(W80*($E$80+$E$76)))/($E$81+$E$80+$E$76) -> 0.08299155578 | X83: =W83*E83*$T$2 -> 2811.167857

Sheet North_Channel
D1: Equation No. In Report | J1: 1 | K1: 3 | L1: 4 | M1: 18 | N1: 5 | O1: 7 | P1: 14 | Q1: 9 | R1: 5
D2: Variable in Report | J2: Qgw | K2: Qgwi…n | L2: Qmi…n | M2: Cgw i…n | N2: ∆M | O2: ∆Mi…n | P2: Cp | Q2: Cm | R2: MUS, -MD, +MR
A3: Diversion, Return, or Main-stem | E3: Measured Discharge | F3: MeasuredTP | G3: Estimated Diversion TP | H3: Net SW Discharge | I3: Discharge Uncertainty Propogation of Errror | J3: Discharge Gain/Loss per Subreach | K3: GW Gain/Loss per RM | L3: Modeled Flow with GW | M3: Estimated GW TP | N3: Load Gain/Loss per Subreach | O3: Load In/Out per RM | P3: TP | Q3: TP | R3: SW Load in/out
B4: Name | C4: Site ID | D4: RM | E4: ft3/s | F4: mg/L | G4: mg/L | H4: ft3/s | I4: ft3/s | J4: ft3/s | K4: ft3/s/mi | L4: ft3/s | M4: mg/L | N4: lbs/d | O4: lbs/d/mi | P4: mg/L | Q4: mg/L | R4: lbs/d | S4: Note
A5: D | B5: Loss to North Channel (Boise River North Channel near Eagle, ID) | C5: Computed | D5: 45.5 | E5: =E8-E6-E7 -> 177 | G5: 0.07 | H5: =E5 -> 177 | L5: =H5 -> 177 | M5: =Aug.20.2012_Model!N14 -> 0.02890295359 | O5: =(D5-D6)*Unmeasured_Gains_Losses!$C$18 -> -2.876682667 | P5: =Aug.20.2012_Model!P15 -> 0.07362638016 | Q5: =((G5*E5)+(O5*Aug.20.2012_Model!T3))/H5 -> 0.06698681733 | R5: =(Aug.20.2012_Model!S15/-1)-R6 -> 62.4599724 | S5: Computed from measured Q at RM 45.5 = 161 + Ballentyne + Mace Mace
A6: D | B6: Ballentyne Canal | D6: 44 | E6: -16 | G6: 0.06 | H6: =E6+E5 -> 161 | L6: =H6 -> 161 | M6: =Aug.20.2012_Model!N15 -> 0.03452883263 | O6: =(D6-D7)*Unmeasured_Gains_Losses!$C$18 -> -2.301346133 | P6: =((P5*L5)+(E6*P5))/L6 -> 0.07362638016 | Q6: =((G6*E6)+(Q5*L5)+(O6*Aug.20.2012_Model!$T$3))/L6 -> 0.0650310559 | R6: =E6*G6*Aug.20.2012_Model!$T$2 -> -5.1780288
A7: D | B7: Mace-Mace Canal | D7: 42.8 | E7: 0 | G7: 0.06 | H7: =H6+E7 -> 161 | L7: 161 | M7: =Aug.20.2012_Model!N16 -> 0.04240506329 | O7: =(D7-D8)*Unmeasured_Gains_Losses!$C$18 -> 0 | P7: =((P6*L6)+(E7*P6))/L7 -> 0.07362638016 | Q7: =((G7*E7)+(Q6*L6)+(O7*Aug.20.2012_Model!$T$3))/L7 -> 0.0650310559 | R7: =E7*G7*Aug.20.2012_Model!$T$2 -> 0
A8: M | B8: Boise River North Channel near Eagle, ID | C8: 13206300 | D8: 42.8 | E8: 161 | F8: 0.06 | H8: 161 | I8: 23.73 | J8: =H8-H7 -> 0 | K8: 0 | L8: =L7+K8 -> 161 | M8: =Aug.20.2012_Model!N17 -> 0.0458931083 | N8: =R8-(SUM(R5:R7)) -> -5.1780288 | O8: 0 | P8: =((P7*L7)+(K8*M8))/L8 -> 0.07362638016 | Q8: =((Q7*L7)+(O8*Aug.20.2012_Model!$T$3))/L8 -> 0.0650310559 | R8: =E8*F8*Aug.20.2012_Model!$T$2 -> 52.1039148 | S8: Instantaneous Q
A9: R | B9: Eagle Drain at Eagle, ID | C9: 13206400 | D9: 42.7 | E9: 40 | F9: 0.09 | H9: =H8+E9 -> 201 | K9: =(D8-D9)*Unmeasured_Gains_Losses!$B$19 -> 2.979 | L9: =L8+K9+E9 -> 203.979 | M9: =Aug.20.2012_Model!N18 -> 0.04971870605 | O9: =(D8-D9)*Unmeasured_Gains_Losses!$C$19 -> 2.834593203 | P9: =((P8*L8)+(E9*F9)+(K9*M9))/L9 -> 0.07648806608 | Q9: =((E9*F9)+(Q8*L8)+(O9*Aug.20.2012_Model!$T$3))/L9 -> 0.07155408155 | R9: =E9*F9*Aug.20.2012_Model!$T$2 -> 19.417608 | S9: Mean daily Q
A10: R | B10: Dry Creek at Eagle, ID | C10: 13208000 | D10: 42.5 | E10: 5.21 | F10: 0.07 | H10: =H9+E10 -> 206.21 | K10: =(D9-D10)*Unmeasured_Gains_Losses!$B$19 -> 5.958 | L10: =L9+K10+E10 -> 215.147 | M10: =Aug.20.2012_Model!N19 -> 0.05714486639 | O10: =(D9-D10)*Unmeasured_Gains_Losses!$C$19 -> 5.669186407 | P10: =((P9*L9)+(E10*F10)+(K10*M10))/L10 -> 0.07579528576 | Q10: =((E10*F10)+(Q9*L9)+(O10*Aug.20.2012_Model!$T$3))/L10 -> 0.07442023361 | R10: =E10*F10*Aug.20.2012_Model!$T$2 -> 1.967111566 | S10: Instantaneous Q
A11: D | B11: Hart-Davis Canal | D11: 42.1 | E11: -8 | G11: 0.08 | H11: =H10+E11 -> 198.21 | K11: =(D10-D11)*Unmeasured_Gains_Losses!$B$19 -> 11.916 | L11: 219.063 | M11: =Aug.20.2012_Model!N20 -> 0.06198312236 | O11: =(D10-D11)*Unmeasured_Gains_Losses!$C$19 -> 11.33837281 | P11: =((P10*L10)+(E11*F11)+(K11*M11))/L11 -> 0.07781195013 | Q11: =((G11*E11)+(Q10*L10)+(O11*Aug.20.2012_Model!$T$3))/L11 -> 0.07976431438 | R11: =G11*E11*Aug.20.2012_Model!T2 -> -3.4520192
A12: M | B12: Boise River (North Channel) above Middleton Canal, ID | C12: 13208600 | D12: 41.8 | E12: 228 | F12: 0.08 | H12: =H11 -> 198.21 | I12: 18.67 | J12: =E12-(SUM(E8:E11)) -> 29.79 | K12: =(D11-D12)*Unmeasured_Gains_Losses!$B$19 -> 8.937 | L12: =L11+K12 -> 228 | M12: =Aug.20.2012_Model!N21 -> 0.06198312236 | N12: =R12-(SUM(R8:R11)) -> 28.34593203 | O12: =(D11-D12)*Unmeasured_Gains_Losses!$C$19 -> 8.50377961 | P12: =((P11*L11)+(K12*M12))/L12 -> 0.07719150173 | Q12: =((Q11*L11)+(O12*Aug.20.2012_Model!$T$3))/L12 -> 0.08355263158 | R12: =E12*F12*Aug.20.2012_Model!$T$2 -> 98.3825472 | S12: Instantaneous Q
A13: D | B13: Middleton Canal | D13: 41.5 | E13: -117 | G13: 0.08 | H13: =H12+E13 -> 81.21 | L13: =K13+L12+E13 -> 111 | M13: =Aug.20.2012_Model!N22 -> 0.06445850914 | P13: =((P12*L12)+(E13*P12)+(K13*M13))/L13 -> 0.07719150173 | Q13: =((G13*E13)+(Q12*L12)+(O13*Aug.20.2012_Model!$T$3))/L13 -> 0.0872972973 | R13: =E13*G13*Aug.20.2012_Model!$T$2 -> -50.4857808
A14: D | B14: Eagle Island Park | D14: 41.4 | E14: 0 | G14: 0.08 | H14: =H13+E14 -> 81.21 | L14: =K14+L13+E14 -> 111 | M14: =Aug.20.2012_Model!N23 -> 0.06502109705 | P14: =((P13*L13)+(E14*P13)+(K14*M14))/L14 -> 0.07719150173 | Q14: =((G14*E14)+(Q13*L13)+(O14*Aug.20.2012_Model!$T$3))/L14 -> 0.0872972973 | R14: =E14*G14*Aug.20.2012_Model!$T$2 -> 0
A15: D | B15: Little Pioneer Canal | D15: 41.2 | E15: -19 | G15: 0.08 | H15: =H14+E15 -> 62.21 | L15: =K15+L14+E15 -> 92 | M15: =Aug.20.2012_Model!N24 -> 0.06614627286 | P15: =((P14*L14)+(E15*P14)+(K15*M15))/L15 -> 0.07719150173 | Q15: =((G15*E15)+(Q14*L14)+(O15*Aug.20.2012_Model!$T$3))/L15 -> 0.08880434783 | R15: =E15*G15*Aug.20.2012_Model!$T$2 -> -8.1985456 | S15: Computed Q
A16: R | B16: GAIN FROM North Channel | C16: Computed | D16: 40.2 | E16: =L16 -> 92 | G16: 0.08 | L16: 92 | P16: =P15 -> 0.07719150173 | Q16: =Q15 -> 0.08880434783

Sheet Unmeasured_Gains_Losses
B1: Unaccounted-for Gains and Losses in Discharge and Mass
A2: Equation No. In Report | B2: 2 | C2: 6 | F2: 1 | G2: 5
A3: Variable in Report | B3: QgwRM | C3: ∆MRM | F3: Qgw | G3: ∆M
B4: Discharge Gain/Loss Per River Mile | C4: Load Gain/Loss Per River Mile | D4: Beginning Reach (RM) | E4: End Reach (RM) | F4: Discharge Gain / Loss over Reach | G4: Load Gain/Loss over Reach
B5: ft3/s | C5: lbs/d | D5: mi | E5: mi | F5: ft3/s | G5: lbs/d
B6: =F6/(D6-E6) -> -10.41198502 | C6: =G6/(D6-E6) -> -0.07091649569 | D6: 50.17 | E6: 47.5 | F6: =Aug.20.2012_Model!K13 -> -27.8 | G6: =Aug.20.2012_Model!T13 -> -0.1893470435
B7: 4.489361702 | C7: =G7/(D7-E7) -> 20.20716558 | D7: 47.5 | E7: 42.8 | F7: =Aug.20.2012_Model!K23 -> 21.1 | G7: =Aug.20.2012_Model!T23 -> 94.97367824
B8: 74.60784314 | C8: -85.10009955 | D8: 42.8 | E8: 41.78 | F8: =Aug.20.2012_Model!K28 -> 76.1 | G8: =Aug.20.2012_Model!T28 -> -86.80210154
B9: -24.41314554 | C9: -24.94306714 | D9: 41.78 | E9: 39.65 | F9: =Aug.20.2012_Model!K31 -> -52 | G9: =Aug.20.2012_Model!T31 -> -53.128733
B10: 0.1261538462 | C10: -18.01422943 | D10: 39.65 | E10: 36.4 | F10: =Aug.20.2012_Model!K33 -> 0.41 | G10: =Aug.20.2012_Model!T33 -> -58.54624563
B11: -2.012072435 | C11: 6.609279718 | D11: 36.4 | E11: 31.43 | F11: =Aug.20.2012_Model!K37 -> -10 | G11: =Aug.20.2012_Model!T37 -> 32.8481202
B12: 41.003861 | C12: 54.27100649 | D12: 31.43 | E12: 28.84 | F12: =Aug.20.2012_Model!K39 -> 106.2 | G12: =Aug.20.2012_Model!T39 -> 140.5619068
B13: 28.04320988 | C13: 33.76517378 | D13: 28.84 | E13: 23.98 | F13: =Aug.20.2012_Model!K49 -> 136.29 | G13: =Aug.20.2012_Model!T49 -> 164.0987446
B14: 4.254901961 | C14: 7.757524765 | D14: 23.98 | E14: 21.43 | F14: =Aug.20.2012_Model!K54 -> 10.85 | G14: =Aug.20.2012_Model!T54 -> 19.78168815
B15: 13.93414211 | C15: 30.58656527 | D15: 21.43 | E15: 15.66 | F15: =Aug.20.2012_Model!K61 -> 80.4 | G15: =Aug.20.2012_Model!T61 -> 176.4844816
B16: 5.195936139 | C16: 4.491946247 | D16: 15.66 | E16: 8.77 | F16: =Aug.20.2012_Model!K70 -> 35.8 | G16: =Aug.20.2012_Model!T70 -> 30.94950964
B17: 15.69416499 | C17: 18.21079042 | D17: 8.77 | E17: 3.8 | F17: =Aug.20.2012_Model!K76 -> 78 | G17: =Aug.20.2012_Model!T76 -> 90.5076284
A18: Begin North Channel | B18: =F18/(D18-E18) -> 0 | C18: =G18/(D18-E18) -> -1.917788444 | D18: 45.5 | E18: 42.8 | F18: =North_Channel!J8 -> 0 | G18: =North_Channel!N8 -> -5.1780288
B19: =F19/(D19-E19) -> 29.79 | C19: =G19/(D19-E19) -> 28.34593203 | D19: 42.8 | E19: 41.8 | F19: =North_Channel!J12 -> 29.79 | G19: =North_Channel!N12 -> 28.34593203

Sheet Measured_Main_Stem_Data
A1: RM | B1: Discharge | C1: Measured TP | D1: Measured Load | E1: Mm TP | F1: 1:1 Line | G1: Cp TP | H1: Cm TP
A2: mile | B2: cfs | C2: mg/L | D2: lbs/d | E2: lbs/d | F2: mg/L | G2: mg/L | H2: mg/L
A3: 61.1 | B3: 1605 | C3: 0.012 | D3: =C3*B3*Aug.20.2012_Model!$T$2 -> 103.8842028 | F3: =C3 -> 0.012
A4: 50.17 | B4: 752 | C4: 0.015 | D4: =C4*B4*Aug.20.2012_Model!$T$2 -> 60.8418384 | E4: =Aug.20.2012_Model!X10 -> 61.4081853 | F4: 0.015 | G4: =Aug.20.2012_Model!Q10 -> 0.015 | H4: =Aug.20.2012_Model!W10 -> 0.015
A5: 47.5 | B5: 778 | C5: 0.07 | D5: =C5*B5*Aug.20.2012_Model!$T$2 -> 293.7452588 | E5: =Aug.20.2012_Model!X13 -> 311.4039298 | F5: 0.07 | G5: =Aug.20.2012_Model!Q13 -> 0.0742083049 | H5: =Aug.20.2012_Model!W13 -> 0.07677379694
A6: 42.8 | B6: 564 | C6: 0.27 | D6: =C6*B6*Aug.20.2012_Model!$T$2 -> 821.3648184 | E6: =Aug.20.2012_Model!X23 -> 825.770921 | F6: 0.27 | G6: =Aug.20.2012_Model!Q23 -> 0.2415775146 | H6: =Aug.20.2012_Model!W23 -> 0.2714483792
A7: 41.78 | B7: 651 | C7: 0.21 | D7: =C7*B7*Aug.20.2012_Model!$T$2 -> 737.3836638 | E7: =Aug.20.2012_Model!X28 -> 741.7897664 | F7: 0.21 | G7: =Aug.20.2012_Model!Q28 -> 0.2185489132 | H7: =Aug.20.2012_Model!W28 -> 0.211254817
A8: 39.65 | B8: 363 | C8: 0.18 | D8: =C8*B8*Aug.20.2012_Model!$T$2 -> 352.4295852 | E8: =Aug.20.2012_Model!X31 -> 356.8356878 | F8: 0.18 | G8: =Aug.20.2012_Model!Q31 -> 0.1840007168 | H8: =Aug.20.2012_Model!W31 -> 0.1822503743
A9: 36.4 | B9: 366 | C9: 0.15 | D9: =C9*B9*Aug.20.2012_Model!$T$2 -> 296.118522 | E9: =Aug.20.2012_Model!X33 -> 300.5246246 | F9: 0.15 | G9: =Aug.20.2012_Model!Q33 -> 0.183775567 | H9: =Aug.20.2012_Model!W33 -> 0.1522319286
A10: 31.43 | B10: 253 | C10: 0.18 | D10: =C10*B10*Aug.20.2012_Model!$T$2 -> 245.6327412 | E10: =Aug.20.2012_Model!X37 -> 250.0388438 | F10: 0.18 | G10: =Aug.20.2012_Model!Q37 -> 0.183775567 | H10: =Aug.20.2012_Model!W37 -> 0.1832287979
A11: 28.84 | B11: 452 | C11: 0.22 | D11: =C11*B11*Aug.20.2012_Model!$T$2 -> 536.3574832 | E11: =Aug.20.2012_Model!X39 -> 540.7635858 | F11: 0.22 | G11: =Aug.20.2012_Model!Q39 -> 0.2186817198 | H11: =Aug.20.2012_Model!W39 -> 0.2218072696
A12: 23.98 | B12: 382 | C12: 0.22 | D12: =C12*B12*Aug.20.2012_Model!$T$2 -> 453.2932712 | E12: =Aug.20.2012_Model!X49 -> 457.6993738 | F12: 0.22 | G12: =Aug.20.2012_Model!Q49 -> 0.2378462481 | H12: =Aug.20.2012_Model!W49 -> 0.2221384447
A13: 21.43 | B13: 475 | C13: 0.3 | D13: =C13*B13*Aug.20.2012_Model!$T$2 -> 768.61365 | E13: =Aug.20.2012_Model!X54 -> 773.0197526 | F13: 0.3 | G13: =Aug.20.2012_Model!Q54 -> 0.3123264966 | H13: =Aug.20.2012_Model!W54 -> 0.3017197597
A14: 15.66 | B14: 391 | C14: 0.32 | D14: =C14*B14*Aug.20.2012_Model!$T$2 -> 674.8697536 | E14: =Aug.20.2012_Model!X61 -> 679.2758562 | F14: 0.32 | G14: =Aug.20.2012_Model!Q61 -> 0.3007271887 | H14: =Aug.20.2012_Model!W61 -> 0.3220892222
A15: 8.77 | B15: 711 | C15: 0.31 | D15: =C15*B15*Aug.20.2012_Model!$T$2 -> 1188.84305 | E15: =Aug.20.2012_Model!X70 -> 1193.249152 | F15: 0.31 | G15: =Aug.20.2012_Model!Q70 -> 0.3052463411 | H15: =Aug.20.2012_Model!W70 -> 0.3111489253
A16: 3.8 | B16: 624 | C16: 0.3 | D16: =C16*B16*Aug.20.2012_Model!$T$2 -> 1009.715616 | E16: =Aug.20.2012_Model!X76 -> 1014.121719 | F16: =C16 -> 0.3 | G16: =Aug.20.2012_Model!Q76 -> 0.2990555408 | H16: =Aug.20.2012_Model!W76 -> 0.301309112
C17: 0.6 | F17: 0.6
C18: 0 | F18: =C18 -> 0

Sheet Major_inflows
B1: x | C1: y | D1: y2 | E1: y3
B2: RM | C2: TP range | D2: TP load Range | E2: Q range
A3: Inflow | B3: mile | C3: mg/L | D3: lbs/d | E3: ft3/s
A4: Lander WWTP | B4: 50.01 | C4: 0 | D4: 0 | E4: 0
B5: 50.01 | C5: 0.6 | D5: 1600 | E5: 4000
A6: West Boise WWTP | B6: 44.16 | C6: 0 | D6: 0 | E6: 0
A7: West Boise WWTP | B7: 44.16 | C7: 0.6 | D7: 1600 | E7: 4000
A8: 15mile | B8: 30.31 | C8: 0 | D8: 0 | E8: 0
B9: 30.31 | C9: 0.6 | D9: 1600 | E9: 4000
A10: Mason | B10: 24.95 | C10: 0 | D10: 0 | E10: 0
B11: 24.95 | C11: 0.6 | D11: 1600 | E11: 4000
A12: Caldwell WWTP | B12: 22.55 | C12: 0 | D12: 0 | E12: 0
B13: 22.55 | C13: 0.6 | D13: 1600 | E13: 4000
A14: Indian | B14: 22.44 | C14: 0 | D14: 0 | E14: 0
B15: 22.44 | C15: 0.6 | D15: 1600 | E15: 4000
A16: Dixie | B16: 10.53 | C16: 0 | D16: 0 | E16: 0
B17: 10.53 | C17: 0.6 | D17: 1600 | E17: 4000
A18: North and South Channel Start | B18: 45.51 | C18: 0 | D18: 0 | E18: 0
B19: 45.51 | C19: 0.6 | D19: 1600 | E19: 4000
A20: North and South Channel End | B20: 40.2 | C20: 0 | D20: 0 | E20: 0
B21: 40.2 | C21: 0.6 | D21: 1600 | E21: 4000
A22: TP target | B22: 70 | C22: 0.07
B23: 0 | C23: 0.07
